bitfinex-derivatives/quotes_BTCF0:USTF0_20210707
["timestamp","ask_amount","ask_price","bid_price","bid_amount"]
[1625628130439,0.33906386,34335.0,34333.0,0.24057544]
[1625628130685,0.33906386,34335.0,34328.0,0.48115088]
[1625628130801,0.33907915,34334.0,34328.0,0.48115088]
[1625628130921,1.25940153,34335.0,34333.0,0.001]
[1625628131161,1.01694778,34334.0,34333.0,0.001]
[1625628131342,1.49809866,34334.0,34333.0,0.001]
[1625628131461,0.48115088,34334.0,34333.0,0.001]
[1625628133324,0.48115088,34334.0,34333.0,0.24157544]
[1625628144145,0.49528037,34334.0,34333.0,0.24157544]
[1625628150820,0.52969101,34334.0,34333.0,0.24157544]
[1625628151663,0.86901195,34334.0,34333.0,0.24157544]
[1625628152143,0.83460131,34334.0,34333.0,0.24157544]
[1625628152387,0.49528037,34334.0,34333.0,0.24157544]
[1625628153648,0.8346743,34334.0,34333.0,0.24157544]
[1625628153887,0.49528037,34334.0,34333.0,0.24157544]
[1625628154186,0.01412949,34334.0,34333.0,0.24157544]
[1625628154308,0.01412949,34334.0,34333.0,0.46683544]
[1625628154849,0.01412094,34336.0,34333.0,0.46683544]
[1625628155087,0.01412124,34334.0,34333.0,0.46683544]
[1625628155388,0.01412104,34336.0,34333.0,0.46683544]
[1625628155508,0.01412104,34336.0,34335.0,0.24057544]
[1625628155629,0.42448164,34337.0,34335.0,0.24057544]
[1625628155870,0.01412114,34336.0,34335.0,0.24057544]
[1625628156649,0.04853036,34336.0,34335.0,0.24057544]
[1625628157972,0.5577553,34336.0,34335.0,0.24057544]
[1625628158275,0.38795711,34336.0,34335.0,0.24057544]
[1625628158451,0.55775485,34336.0,34335.0,0.24057544]
[1625628160194,0.38795711,34336.0,34335.0,0.24057544]
[1625628160497,0.55779878,34336.0,34335.0,0.24057544]
[1625628160796,0.38795711,34336.0,34335.0,0.24057544]
[1625628161279,0.04853036,34336.0,34335.0,0.24057544]
[1625628161458,0.72774059,34336.0,34335.0,0.24057544]
[1625628162420,1.74654255,34336.0,34335.0,0.24057544]
[1625628163142,0.72774059,34336.0,34335.0,0.24057544]
[1625628163922,1.74718816,34336.0,34335.0,0.24057544]
[1625628165363,1.74718816,34336.0,34335.0,4.88217544]
[1625628165484,2.93767594,34336.0,34335.0,5.20835544]
[1625628167526,4.29949914,34336.0,34335.0,5.20835544]
[1625628169332,3.10901136,34336.0,34335.0,5.20835544]
[1625628169448,1.74718816,34336.0,34335.0,5.20835544]
[1625628169570,2.94024549,34336.0,34335.0,5.20835544]
[1625628170710,2.94024549,34336.0,34335.0,4.88217544]
[1625628170831,4.30372656,34336.0,34335.0,0.24057544]
[1625628171551,4.30372656,34336.0,34332.0,0.001]
[1625628171792,4.99040197,34333.0,34332.0,0.001]
[1625628172092,6.57529274,34333.0,34332.0,0.001]
[1625628172452,5.03892644,34333.0,34332.0,0.001]
[1625628172877,3.67330988,34333.0,34332.0,0.001]
[1625628173113,5.03896096,34333.0,34332.0,0.001]
[1625628174135,4.31626008,34333.0,34332.0,0.001]
[1625628174737,2.91619739,34333.0,34332.0,0.001]
[1625628175157,2.91619739,34333.0,34332.0,0.002]
[1625628175398,4.28478053,34333.0,34332.0,0.002]
[1625628175818,4.28478053,34333.0,34332.0,0.24257544]
[1625628176843,4.28478053,34333.0,34332.0,0.47453544]
[1625628178285,2.91619739,34333.0,34332.0,0.47453544]
[1625628179305,2.91619739,34333.0,34332.0,0.47353544]
[1625628179426,1.72126157,34333.0,34332.0,0.47353544]
[1625628179608,2.9193123,34333.0,34332.0,0.47353544]
[1625628181649,3.43286412,34333.0,34332.0,0.47353544]
[1625628182490,2.23481339,34333.0,34332.0,0.47353544]
[1625628182730,3.43332805,34333.0,34332.0,0.47353544]
[1625628184951,3.43332805,34333.0,34332.0,0.61833544]
[1625628185553,4.80488945,34333.0,34332.0,0.61833544]
[1625628186575,4.80488945,34333.0,34332.0,0.86483479]
[1625628186999,5.08699945,34333.0,34332.0,0.63287479]
[1625628187118,5.08699945,34333.0,34332.0,0.38637544]
[1625628187362,6.63093765,34333.0,34332.0,0.38637544]
[1625628187661,5.08699945,34333.0,34332.0,0.38637544]
[1625628188021,4.80488945,34333.0,34332.0,0.38637544]
[1625628188561,4.80488945,34333.0,34332.0,0.46863026]
[1625628188801,4.80488945,34333.0,34332.0,0.96193583]
[1625628189704,4.80488945,34333.0,34332.0,0.63306545]
[1625628191086,4.80488945,34333.0,34332.0,0.87966992]
[1625628191929,4.80488945,34333.0,34332.0,0.38637544]
[1625628192048,5.13375945,34333.0,34332.0,0.38637544]
[1625628192770,6.67758877,34333.0,34332.0,0.38637544]
[1625628193491,5.13375945,34333.0,34332.0,0.38637544]
[1625628193734,6.67766027,34333.0,34332.0,0.38637544]
[1625628194874,5.13375945,34333.0,34332.0,0.38637544]
[1625628195055,4.80488945,34333.0,34332.0,0.38637544]
[1625628197521,4.80488945,34333.0,34332.0,0.63290238]
[1625628197763,4.80488945,34333.0,34332.0,0.46855109]
[1625628198184,4.80488945,34333.0,34332.0,0.96182593]
[1625628199205,4.80488945,34333.0,34332.0,0.87965028]
[1625628199447,4.80488945,34333.0,34332.0,1.20857039]
[1625628199687,4.80488945,34333.0,34332.0,0.87969315]
[1625628199927,4.80488945,34333.0,34332.0,0.96193447]
[1625628200107,4.80488945,34333.0,34332.0,0.63308458]
[1625628200288,4.80488945,34333.0,34332.0,0.96202646]
[1625628200527,4.80488945,34333.0,34332.0,0.63308458]
[1625628200948,4.80488945,34333.0,34332.0,0.46861676]
[1625628201668,4.80488945,34333.0,34332.0,0.38637544]
[1625628202389,6.34924213,34333.0,34332.0,0.38637544]
[1625628202631,4.80488945,34333.0,34332.0,0.38637544]
[1625628202872,4.83929458,34333.0,34332.0,0.38637544]
[1625628203531,6.3838618,34333.0,34332.0,0.38637544]
[1625628204074,4.83929458,34333.0,34332.0,0.38637544]
[1625628204672,6.38391654,34333.0,34332.0,0.38637544]
[1625628206173,6.62449198,34333.0,34332.0,0.38637544]
[1625628206293,6.92402198,34333.0,34332.0,0.38637544]
[1625628208337,6.68344654,34333.0,34332.0,0.38637544]
[1625628208456,6.38391654,34333.0,34332.0,0.38637544]
[1625628210143,6.62449198,34333.0,34332.0,0.38637544]
[1625628213088,6.91293198,34333.0,34332.0,0.38637544]
[1625628215614,8.63050913,34333.0,34332.0,0.38637544]
[1625628215856,8.63050913,34333.0,34332.0,0.1458]
[1625628216214,8.87108457,34333.0,34327.0,0.08253519]
[1625628216455,3.09168723,34328.0,34326.0,0.57991865]
[1625628216575,6.35510624,34328.0,34326.0,0.57991865]
[1625628216816,4.80900028,34327.0,34326.0,0.57991865]
[1625628216995,4.82310748,34327.0,34326.0,0.57991865]
[1625628217297,6.36875362,34327.0,34326.0,0.24971943]
[1625628218020,4.82310748,34327.0,34326.0,0.24971943]
[1625628218137,5.06368292,34327.0,34326.0,0.24971943]
[1625628218317,6.60922312,34327.0,34326.0,0.24971943]
[1625628218437,5.06368292,34327.0,34326.0,0.24971943]
[1625628218918,5.06368292,34327.0,34326.0,0.58085724]
[1625628219459,5.06368292,34327.0,34326.0,1.15769399]
[1625628219701,5.06368292,34327.0,34326.0,2.14724149]
[1625628220180,5.06368292,34327.0,34326.0,2.38781693]
[1625628220604,5.06368292,34327.0,34326.0,1.39826943]
[1625628220842,5.06368292,34327.0,34326.0,1.06848835]
[1625628221021,5.06368292,34327.0,34326.0,1.39841935]
[1625628221922,5.06368292,34327.0,34326.0,0.73844429]
[1625628222345,5.06368292,34327.0,34326.0,0.82128934]
[1625628222469,5.33993292,34327.0,34326.0,0.82128934]
[1625628222649,6.88551981,34327.0,34326.0,0.24357544]
[1625628224989,5.33993292,34327.0,34326.0,0.73873021]
[1625628225168,5.06368292,34327.0,34326.0,0.73873021]
[1625628225348,5.06368292,34327.0,34326.0,0.82125995]
[1625628225529,5.06368292,34327.0,34326.0,0.73873021]
[1625628226192,5.06368292,34327.0,34326.0,0.3261379]
[1625628226433,5.06368292,34327.0,34326.0,0.82140352]
[1625628226674,6.60905861,34327.0,34326.0,0.24357544]
[1625628227333,6.60905861,34327.0,34326.0,0.24157544]
[1625628227575,5.06368292,34327.0,34326.0,0.32413166]
[1625628227998,5.06368292,34327.0,34326.0,0.81938072]
[1625628228359,5.06368292,34327.0,34326.0,0.7368245]
[1625628228598,5.06368292,34327.0,34326.0,1.06689988]
[1625628229079,5.06368292,34327.0,34326.0,0.73673384]
[1625628229378,5.06368292,34327.0,34326.0,0.73676528]
[1625628229797,5.06368292,34327.0,34326.0,0.73656505]
[1625628230339,5.06368292,34327.0,34326.0,0.73666916]
[1625628230581,5.06368292,34327.0,34326.0,0.48914317]
[1625628230762,5.06368292,34327.0,34326.0,0.24157544]
[1625628231001,5.06368292,34327.0,34326.0,0.48914867]
[1625628231963,5.06368292,34327.0,34326.0,0.32409985]
[1625628232385,6.60875119,34327.0,34326.0,0.24157544]
[1625628233104,5.06368292,34327.0,34326.0,1.08010607]
[1625628233464,5.06368292,34327.0,34326.0,1.32744023]
[1625628233886,5.06368292,34327.0,34326.0,0.99746273]
[1625628234186,5.06368292,34327.0,34326.0,1.08010953]
[1625628234364,5.06368292,34327.0,34326.0,1.32746965]
[1625628234845,5.06368292,34327.0,34326.0,1.65734236]
[1625628236347,4.82310748,34327.0,34326.0,1.65734236]
[1625628236468,4.82310748,34327.0,34326.0,0.99768681]
[1625628236648,4.82310748,34327.0,34326.0,2.85508681]
[1625628236767,4.82310748,34327.0,34326.0,2.9375907]
[1625628236949,4.82310748,34327.0,34326.0,2.60756312]
[1625628237249,4.82310748,34327.0,34326.0,2.44254933]
[1625628238149,2.34850748,34327.0,34326.0,2.44254933]
[1625628238333,1.84850748,34327.0,34326.0,2.68312477]
[1625628238451,0.0141072,34327.0,34326.0,5.89442892]
[1625628238573,0.0141072,34327.0,34326.0,5.89869937]
[1625628238810,0.001,34332.0,34326.0,7.37933575]
[1625628238811,0.34334779,34329.0,34326.0,7.37933575]
[1625628239109,0.34334779,34329.0,34328.0,0.98703897]
[1625628239231,0.34334779,34329.0,34328.0,4.49503897]
[1625628239471,0.34333159,34330.0,34328.0,4.49503897]
[1625628239591,0.34333159,34330.0,34328.0,4.49930896]
[1625628239713,0.001,34332.0,34329.0,0.98641995]
[1625628239714,0.34431691,34332.0,34329.0,0.98641995]
[1625628239891,0.34431691,34332.0,34331.0,0.98637375]
[1625628240132,0.34431691,34332.0,34331.0,0.99064368]
[1625628240373,0.001,34332.0,34331.0,1.23121912]
[1625628240493,0.0151052,34332.0,34331.0,1.23121912]
[1625628240672,0.34431712,34332.0,34331.0,1.23121912]
[1625628240912,0.001,34332.0,34331.0,1.23121912]
[1625628242594,0.0151132,34332.0,34331.0,1.23121912]
[1625628242833,0.001,34332.0,34331.0,1.22694919]
[1625628242957,1.03034723,34332.0,34331.0,1.22694919]
[1625628243074,1.04446082,34332.0,34331.0,1.22694919]
[1625628243437,0.01511359,34332.0,34331.0,1.22694919]
[1625628243616,0.01511359,34332.0,34331.0,1.23121699]
[1625628244277,0.35828715,34332.0,34331.0,1.23121699]
[1625628244396,0.34417356,34332.0,34331.0,1.23121699]
[1625628244576,0.001,34332.0,34331.0,1.23121699]
[1625628244696,0.01511321,34332.0,34331.0,1.23121699]
[1625628245297,0.01411321,34332.0,34331.0,1.23121699]
[1625628245419,0.01411321,34332.0,34331.0,1.22694919]
[1625628245659,1.02919781,34333.0,34331.0,1.22694919]
[1625628245961,1.02915676,34334.0,34332.0,0.99084497]
[1625628246080,1.02915676,34334.0,34333.0,0.99071486]
[1625628246440,1.04326991,34334.0,34333.0,1.2312903]
[1625628246620,1.04326991,34334.0,34333.0,1.5388403]
[1625628247282,1.02915676,34334.0,34333.0,1.5388403]
[1625628248481,1.02915676,34334.0,34333.0,1.2312903]
[1625628249805,1.02915676,34334.0,34333.0,1.4758303]
[1625628252633,1.02915676,34334.0,34333.0,0.48511544]
[1625628253173,1.02915676,34334.0,34333.0,1.47754054]
[1625628253413,1.02915676,34334.0,34333.0,0.48511544]
[1625628253594,1.02915676,34334.0,34333.0,1.47765567]
[1625628254014,1.02915676,34334.0,34333.0,0.48511544]
[1625628255035,1.02915676,34334.0,34333.0,1.47704431]
[1625628255575,1.02915676,34334.0,34333.0,0.48511544]
[1625628256355,1.02915676,34334.0,34333.0,1.47670308]
[1625628256539,1.02915676,34334.0,34333.0,0.48511544]
[1625628257857,1.02915676,34334.0,34333.0,0.24057544]
[1625628259360,1.02915676,34334.0,34333.0,0.54457544]
[1625628259659,1.0432712,34334.0,34333.0,0.54457544]
[1625628260742,1.0432712,34334.0,34333.0,0.24057544]
[1625628261105,2.2427379,34334.0,34333.0,0.73654695]
[1625628261824,1.0432712,34334.0,34333.0,0.57122311]
[1625628262484,2.24270366,34334.0,34333.0,0.57122311]
[1625628262663,1.0432712,34334.0,34333.0,0.57122311]
[1625628262905,1.0432712,34334.0,34333.0,0.24057544]
[1625628265070,0.35686208,34334.0,34333.0,1.23097797]
[1625628267834,0.35686208,34334.0,34333.0,1.23524475]
[1625628270417,0.01411444,34334.0,34333.0,0.24484222]
[1625628270718,0.3567292,34334.0,34333.0,1.23011897]
[1625628270839,0.34261476,34334.0,34333.0,1.23011897]
[1625628271080,0.35672536,34334.0,34333.0,1.23011897]
[1625628274629,0.0141106,34334.0,34333.0,0.24484222]
[1625628274868,0.0141106,34334.0,34333.0,1.22971018]
[1625628274988,0.34257545,34335.0,34333.0,1.22971018]
[1625628275228,0.01411056,34334.0,34333.0,1.22971018]
[1625628275531,0.01411056,34334.0,34333.0,1.2254434]
[1625628275708,0.35668423,34334.0,34333.0,1.22971116]
[1625628276852,0.01411056,34334.0,34333.0,2.37840425]
[1625628277090,0.01411053,34336.0,34333.0,2.37840425]
[1625628277331,0.01411053,34336.0,34335.0,0.98442755]
[1625628277572,0.01411053,34336.0,34335.0,0.98869524]
[1625628278775,0.01411053,34336.0,34335.0,1.22927068]
[1625628282388,0.01411053,34336.0,34335.0,3.68709648]
[1625628283106,0.01411053,34336.0,34335.0,3.77389648]
[1625628283347,1.053e-05,34336.0,34335.0,3.77389648]
[1625628283468,0.002,34342.0,34335.0,3.77389648]
[1625628283592,0.002,34342.0,34336.0,0.5]
[1625628283834,0.002,34342.0,34341.0,3.43411629]
[1625628283957,0.002,34342.0,34341.0,3.73820629]
[1625628284319,0.002,34344.0,34341.0,3.74248877]
[1625628284558,0.002,34344.0,34342.0,0.00428238]
[1625628284860,0.002,34344.0,34343.0,4.15340745]
[1625628285579,0.002,34344.0,34343.0,2.84610035]
[1625628285819,0.002,34344.0,34343.0,4.15536377]
[1625628286061,0.002,34344.0,34343.0,2.84610035]
[1625628286300,0.002,34344.0,34343.0,1.70320664]
[1625628286420,0.002,34344.0,34343.0,0.72272632]
[1625628286541,0.002,34344.0,34343.0,2.85056494]
[1625628287083,0.002,34344.0,34343.0,4.15971522]
[1625628287203,0.002,34344.0,34343.0,4.1639972]
[1625628287442,0.001,34347.0,34343.0,4.15971522]
[1625628287563,0.29676281,34348.0,34343.0,4.15971522]
[1625628287741,0.29676281,34348.0,34346.0,0.98108]
[1625628288281,1.20019196,34352.0,34347.0,4.8432]
[1625628288282,1.02654484,34351.0,34347.0,4.8432]
[1625628288522,1.02654484,34351.0,34349.0,0.57693621]
[1625628288885,1.02654484,34351.0,34350.0,0.72172632]
[1625628289003,1.19978751,34352.0,34350.0,0.72172632]
[1625628289182,1.02633271,34351.0,34350.0,0.72172632]
[1625628290024,1.02633271,34351.0,34350.0,0.79402632]
[1625628291045,2.22403137,34351.0,34350.0,0.79402632]
[1625628292006,1.02633271,34351.0,34350.0,0.79402632]
[1625628292489,2.22373475,34351.0,34350.0,0.79402632]
[1625628292730,1.02633271,34351.0,34350.0,0.79402632]
[1625628294292,1.32497271,34351.0,34350.0,0.79402632]
[1625628294533,2.5224524,34351.0,34350.0,0.79402632]
[1625628295132,2.5224524,34351.0,34350.0,1.13434632]
[1625628295133,1.32497271,34351.0,34350.0,1.13434632]
[1625628295255,0.29864,34351.0,34350.0,1.13434632]
[1625628295432,1.02829724,34352.0,34350.0,1.13434632]
[1625628296154,0.002,34352.0,34350.0,1.37864439]
[1625628296273,1.02628188,34353.0,34350.0,1.37864439]
[1625628296394,0.24157544,34356.0,34350.0,1.13434632]
[1625628296395,1.02629057,34352.0,34350.0,1.13434632]
[1625628296694,1.02628768,34353.0,34350.0,1.13434632]
[1625628296935,1.02628768,34353.0,34351.0,0.08144617]
[1625628297115,1.02628768,34353.0,34350.0,1.37865988]
[1625628297415,1.02619177,34354.0,34351.0,0.0814122]
[1625628297837,1.02619177,34354.0,34351.0,0.24423111]
[1625628298317,0.68418481,34353.0,34351.0,0.24423111]
[1625628298979,0.68417282,34354.0,34351.0,0.24423111]
[1625628299519,0.68417282,34354.0,34351.0,0.0814122]
[1625628299759,0.68417282,34354.0,34350.0,1.03809746]
[1625628299760,0.68395344,34353.0,34350.0,1.03809746]
[1625628300962,0.6839672,34352.0,34350.0,0.79402632]
[1625628301444,0.68395691,34353.0,34350.0,1.30987954]
[1625628301624,1.0258499,34354.0,34350.0,1.30987954]
[1625628301625,0.68394522,34354.0,34351.0,0.08135288]
[1625628301863,0.68394522,34354.0,34351.0,0.24403823]
[1625628302403,0.68367212,34355.0,34351.0,0.24403823]
[1625628302643,0.68367212,34355.0,34353.0,3.7987]
[1625628303183,0.68367212,34355.0,34354.0,0.24057544]
[1625628303303,1.05039291,34358.0,34354.0,0.24057544]
[1625628303483,1.36717337,34360.0,34354.0,0.24057544]
[1625628303845,0.01407611,34359.0,34354.0,0.24057544]
[1625628304385,0.01407589,34360.0,34354.0,0.24057544]
[1625628305167,0.01407589,34360.0,34359.0,0.37799105]
[1625628305286,0.01407589,34360.0,34359.0,0.59556105]
[1625628306428,0.01407574,34361.0,34359.0,0.59556105]
[1625628306669,0.01407569,34360.0,34359.0,0.59556105]
[1625628306850,0.01407583,34362.0,34359.0,0.59556105]
[1625628307155,1.62093657,34362.0,34359.0,0.59556105]
[1625628307275,0.25465127,34362.0,34359.0,0.59556105]
[1625628307394,0.0140759,34361.0,34359.0,0.59556105]
[1625628313707,0.04845849,34361.0,34359.0,0.59556105]
[1625628313948,0.0140759,34361.0,34359.0,0.59556105]
[1625628317311,0.0140759,34361.0,34359.0,0.59656105]
[1625628328067,0.0140759,34361.0,34359.0,0.67766402]
[1625628328367,0.0140759,34361.0,34359.0,0.83989297]
[1625628329752,0.0016759,34361.0,34360.0,0.08111551]
[1625628329870,0.001,34367.0,34360.0,0.08111551]
[1625628329990,0.001,34367.0,34360.0,0.49058123]
[1625628330171,0.001,34367.0,34362.0,0.08106483]
[1625628330291,0.01401525,34366.0,34362.0,0.24319448]
[1625628330472,0.01401525,34366.0,34363.0,0.0810373]
[1625628331012,0.01401525,34366.0,34364.0,0.08100785]
[1625628331493,0.01401525,34366.0,34365.0,0.48115088]
[1625628332094,0.01401525,34366.0,34365.0,0.56735088]
[1625628334375,0.01401525,34366.0,34365.0,0.48115088]
[1625628335275,0.01401525,34366.0,34365.0,0.48215088]
[1625628335455,0.25459069,34366.0,34365.0,0.48215088]
[1625628335576,0.24057544,34366.0,34365.0,0.78769088]
[1625628335756,0.01402321,34369.0,34365.0,0.78769088]
[1625628335876,0.01402296,34366.0,34365.0,0.78769088]
[1625628336117,0.01402294,34368.0,34365.0,0.78769088]
[1625628336418,0.01402289,34366.0,34365.0,0.78769088]
[1625628336659,0.0140228,34367.0,34365.0,0.78769088]
[1625628336899,0.01402277,34371.0,34365.0,1.03164121]
[1625628337140,0.01402277,34371.0,34366.0,0.24403485]
[1625628337381,0.01402277,34371.0,34366.0,0.08134495]
[1625628337501,0.25459821,34371.0,34370.0,0.24057544]
[1625628338344,0.01402277,34371.0,34370.0,0.24057544]
[1625628347305,0.01402277,34371.0,34370.0,0.24157544]
[1625628347722,0.04838452,34375.0,34370.0,0.24157544]
[1625628349530,0.04838452,34375.0,34374.0,0.55672544]
[1625628353862,0.01401209,34375.0,34374.0,0.55672544]
[1625628354403,0.04835917,34376.0,34374.0,0.55672544]
[1625628354527,0.04835917,34376.0,34374.0,0.24057544]
[1625628355604,0.24057544,34375.0,34374.0,0.24057544]
[1625628355845,0.28893563,34375.0,34374.0,0.24057544]
[1625628356388,0.28893563,34375.0,34374.0,0.24157544]
[1625628360352,0.59375563,34375.0,34374.0,0.24157544]
[1625628362577,0.59375563,34375.0,34374.0,0.001]
[1625628362996,0.59375563,34375.0,34368.0,0.2444684]
[1625628363357,2.13353893,34375.0,34366.0,0.24465783]
[1625628363479,0.0483633,34374.0,34366.0,0.24465783]
[1625628363658,1.06432632,34366.0,34365.0,0.24475119]
[1625628364136,1.07831637,34366.0,34365.0,0.24475119]
[1625628364498,1.07831637,34366.0,34364.0,0.08463651]
[1625628364920,1.07831637,34366.0,34364.0,0.24790626]
[1625628364921,0.0139903,34365.0,34364.0,0.24790626]
[1625628365340,0.0139903,34365.0,34364.0,0.24590626]
[1625628365759,0.0139903,34365.0,34364.0,0.08263651]
[1625628365999,0.0139903,34365.0,34364.0,0.24590019]
[1625628366182,0.0139903,34365.0,34364.0,0.08263651]
[1625628366481,0.0139903,34365.0,34364.0,0.001]
[1625628367144,0.0139903,34365.0,34364.0,0.24594079]
[1625628368104,0.0139903,34365.0,34364.0,0.001]
[1625628371712,2.58268858,34365.0,34364.0,0.001]
[1625628373635,2.58268858,34365.0,34362.0,0.48583999]
[1625628373636,2.58268858,34365.0,34359.0,0.6142226]
[1625628373756,3.92720295,34365.0,34358.0,0.98129142]
[1625628373996,1.19899027,34360.0,34356.0,0.24057544]
[1625628374237,1.19916529,34359.0,34356.0,0.24057544]
[1625628374357,1.21315393,34359.0,34356.0,0.24057544]
[1625628374597,0.01398866,34358.0,34356.0,0.24057544]
[1625628375080,0.01398866,34358.0,34355.0,1.14542878]
[1625628375202,1.21314802,34358.0,34354.0,0.003]
[1625628375379,1.87794738,34364.0,34354.0,0.003]
[1625628375380,1.19919802,34357.0,34354.0,0.003]
[1625628375499,1.49133802,34357.0,34354.0,0.003]
[1625628375619,0.72172632,34355.0,34354.0,0.003]
[1625628375863,0.72172632,34355.0,34346.0,1.47437771]
[1625628375980,0.73571625,34355.0,34346.0,1.47437771]
[1625628376160,0.73571625,34355.0,34344.0,0.24557544]
[1625628376161,0.01399084,34354.0,34344.0,0.24557544]
[1625628377002,1.5560942,34354.0,34344.0,0.24557544]
[1625628377425,1.5560942,34354.0,34351.0,0.002]
[1625628377603,0.01399152,34353.0,34351.0,0.002]
[1625628377727,0.24057544,34352.0,34351.0,0.002]
[1625628377970,1.78213793,34352.0,34351.0,0.002]
[1625628378089,1.79613027,34352.0,34351.0,0.002]
[1625628379775,1.78213793,34352.0,34351.0,0.002]
[1625628379892,0.24057544,34352.0,34351.0,0.002]
[1625628380612,1.79503215,34352.0,34351.0,0.002]
[1625628380793,1.78103966,34352.0,34351.0,0.002]
[1625628381455,0.24057544,34352.0,34351.0,0.002]
[1625628381754,1.78015058,34352.0,34351.0,0.002]
[1625628381999,0.24057544,34352.0,34351.0,0.002]
[1625628386266,0.24057544,34352.0,34349.0,0.001]
[1625628387768,0.24057544,34350.0,34349.0,0.001]
[1625628388012,0.24057544,34350.0,34339.0,7.544e-05]
[1625628389271,0.24057544,34350.0,34344.0,0.002]
[1625628389691,0.48115088,34345.0,34344.0,0.002]
[1625628390830,0.48115088,34345.0,34344.0,0.003]
[1625628395339,0.48115088,34345.0,34344.0,0.001]
[1625628399362,0.70134088,34345.0,34344.0,0.001]
[1625628400984,0.70531019,34345.0,34344.0,0.001]
[1625628402725,1.89776719,34345.0,34344.0,0.001]
[1625628403868,2.91966364,34345.0,34344.0,0.001]
[1625628404592,4.28216319,34345.0,34344.0,0.001]
[1625628404831,2.91966364,34345.0,34344.0,0.001]
[1625628404953,2.95405998,34345.0,34344.0,0.001]
[1625628405069,4.31656725,34345.0,34344.0,0.001]
[1625628405309,4.81656725,34345.0,34344.0,0.001]
[1625628408735,4.81656725,34345.0,34342.0,0.001]
[1625628408736,6.3483507,34345.0,34342.0,0.001]
[1625628409036,3.57424171,34343.0,34342.0,0.001]
[1625628409155,4.07424171,34343.0,34342.0,0.001]
[1625628409275,4.1226752,34343.0,34342.0,0.001]
[1625628409817,4.36325064,34343.0,34342.0,0.001]
[1625628410119,3.00165906,34343.0,34342.0,0.001]
[1625628410602,4.36269251,34343.0,34342.0,0.001]
[1625628411021,3.00165906,34343.0,34342.0,0.001]
[1625628411381,2.967258,34343.0,34342.0,0.001]
[1625628411801,2.467258,34343.0,34342.0,0.001]
[1625628412043,1.2758441,34343.0,34342.0,0.001]
[1625628412403,1.2758441,34343.0,34342.0,0.002]
[1625628415588,0.25460787,34343.0,34342.0,0.24111]
[1625628415827,0.59510345,34343.0,34342.0,0.24111]
[1625628416127,0.25460787,34343.0,34342.0,0.24111]
[1625628416308,0.25460787,34343.0,34342.0,0.24011]
[1625628416667,0.25460787,34343.0,34342.0,0.001]
[1625628417870,1.27647209,34343.0,34342.0,0.001]
[1625628418347,0.25460787,34343.0,34342.0,0.001]
[1625628419071,1.27688625,34343.0,34342.0,0.001]
[1625628419312,0.25460787,34343.0,34342.0,0.001]
[1625628419492,1.27694717,34343.0,34342.0,0.001]
[1625628419792,0.25460787,34343.0,34342.0,0.001]
[1625628420875,0.25460787,34343.0,34342.0,0.27742]
[1625628420999,0.59547903,34343.0,34342.0,0.27742]
[1625628421238,0.25460787,34343.0,34342.0,0.27742]
[1625628421534,0.24057544,34343.0,34342.0,0.27742]
[1625628423160,0.25460021,34343.0,34342.0,0.27742]
[1625628423280,0.25460021,34343.0,34342.0,4.21772]
[1625628423641,0.24057544,34343.0,34342.0,4.21772]
[1625628424243,0.25460013,34343.0,34342.0,4.21772]
[1625628424965,0.24057544,34343.0,34342.0,4.21772]
[1625628431820,0.58265133,34343.0,34342.0,4.21772]
[1625628432478,0.24057544,34343.0,34342.0,4.54528131]
[1625628433319,0.58284752,34343.0,34342.0,4.54528131]
[1625628433560,0.24057544,34343.0,34342.0,4.21772]
[1625628433740,0.24057544,34343.0,34342.0,4.87348248]
[1625628434040,0.58308665,34343.0,34342.0,4.87348248]
[1625628434280,0.24057544,34343.0,34342.0,4.87348248]
[1625628434524,0.92542981,34343.0,34342.0,4.21772]
[1625628435665,0.92542981,34343.0,34342.0,4.87385089]
[1625628436866,1.95307837,34343.0,34342.0,4.87385089]
[1625628437346,1.95307837,34343.0,34342.0,4.21772]
[1625628437586,1.95307837,34343.0,34342.0,4.87404836]
[1625628438551,0.92542981,34343.0,34342.0,4.87404836]
[1625628438850,0.92542981,34343.0,34342.0,5.85952856]
[1625628439031,0.24057544,34343.0,34342.0,5.85952856]
[1625628439510,0.92581774,34343.0,34342.0,5.85952856]
[1625628440232,0.92581774,34343.0,34342.0,4.87404836]
[1625628440473,1.95361419,34343.0,34342.0,4.87404836]
[1625628440954,1.96763371,34343.0,34342.0,4.87404836]
[1625628444557,1.96763371,34343.0,34342.0,4.21772]
[1625628444678,1.96763371,34343.0,34342.0,4.87564851]
[1625628445037,1.96763371,34343.0,34342.0,0.93534851]
[1625628445520,1.96763371,34343.0,34342.0,0.65892851]
[1625628445641,1.96763371,34343.0,34342.0,0.001]
[1625628445642,3.1668442,34343.0,34342.0,0.001]
[1625628446181,4.53748605,34343.0,34342.0,0.001]
[1625628448708,4.57188191,34343.0,34342.0,0.001]
[1625628449069,4.53748605,34343.0,34342.0,0.001]
[1625628449249,4.53748605,34343.0,34342.0,0.32427]
[1625628450272,4.53748605,34343.0,34342.0,0.001]
[1625628455800,4.53748605,34343.0,34342.0,0.34853]
[1625628457004,4.53748605,34343.0,34342.0,0.001]
[1625628460257,6.07959816,34343.0,34342.0,0.001]
[1625628461337,6.1139952,34343.0,34342.0,0.001]
[1625628462361,6.2014952,34343.0,34342.0,0.001]
[1625628463202,6.1139952,34343.0,34342.0,0.001]
[1625628463803,6.62816714,34343.0,34342.0,0.001]
[1625628464165,6.5937701,34343.0,34342.0,0.001]
[1625628464405,6.6813701,34343.0,34342.0,0.001]
[1625628464526,6.5937701,34343.0,34342.0,0.001]
[1625628465547,6.71546944,34343.0,34342.0,0.001]
[1625628465849,8.42909395,34343.0,34342.0,0.001]
[1625628466026,8.34179395,34343.0,34342.0,0.001]
[1625628467047,6.62816944,34343.0,34342.0,0.001]
[1625628467712,7.12816944,34343.0,34342.0,0.001]
[1625628467892,8.84179156,34343.0,34342.0,0.001]
[1625628468010,8.34179156,34343.0,34342.0,0.001]
[1625628468851,8.84179156,34343.0,34342.0,0.001]
[1625628469210,8.92819156,34343.0,34342.0,0.001]
[1625628469749,8.84179156,34343.0,34342.0,0.001]
[1625628470713,8.93019156,34343.0,34342.0,0.001]
[1625628470953,8.8817727,34343.0,34342.0,0.001]
[1625628471194,8.93021908,34343.0,34342.0,0.001]
[1625628471554,8.84181908,34343.0,34342.0,0.001]
[1625628474625,8.84181908,34343.0,34339.0,7.544e-05]
[1625628474925,8.05543346,34340.0,34339.0,7.544e-05]
[1625628475164,8.38380346,34340.0,34339.0,7.544e-05]
[1625628475284,8.43225414,34340.0,34339.0,7.544e-05]
[1625628476366,8.43225414,34340.0,34339.0,0.00107544]
[1625628476367,8.67282958,34340.0,34339.0,0.00107544]